Cogmind - Beta 16 @@@ ROGUE MODE // 2026.01.12 @ 19:31:40 Player: Tom Fryers Result: Destroyed by as-37498 with Assembled Rifle Performance ------------- Evolutions (0) 0 Regions Visited (2) 400 Robots Destroyed (16) 80 Value Destroyed (258) 258 Prototype IDs (0) 0 Alien Tech Used (0) 0 Bonus (0) 0 TOTAL SCORE: 738 Bonus ------- None Cogmind --------- Core Integrity 0/250 Matter 169/300 Energy 125/125 System Corruption 0% Temperature Cool (80) Movement Treading (160) Location -10/Mines Parts ------- > --- POWER (1) -------- Light Ion Engine > --- PROPULSION (2) --- Light Treads Light Treads > --- UTILITY (2) ------ Large Storage Unit Visual Processing Unit > --- WEAPON (2) ------- Bore Cannon > --- INVENTORY (15) --- Light Treads Light Treads Large Storage Unit Seismic Detector Seismic Detector Light Armor Plating Peak State ------------ > --- POWER ------------ Light Ion Engine > --- PROPULSION ------- Light Treads Light Treads > --- UTILITY ---------- Large Storage Unit Visual Processing Unit > --- WEAPON ----------- Bore Cannon > --- INVENTORY -------- Light Treads Light Treads Large Storage Unit Seismic Detector Seismic Detector Light Armor Plating [Rating: 11] Favorites ----------- Power Ion Engine Engine Ion Engine Propulsion Light Treads Treads Light Treads Utility Visual Processing Unit Storage Large Storage Unit Processor Visual Processing Unit Weapon Assault Rifle Energy Gun Small Laser Energy Cannon Beam Cannon Ballistic Gun Assault Rifle Ballistic Cannon Bore Cannon Launcher Grenade Launcher Build | -11 -10 -10 ------- Run | Yrd Mat Min Slots Evolved . | . . . Power . | . . . Propulsion . | . . . Utility . | . . . Weapon . | . . . Parts Attached 21 | 6 5 10 Power 4 | 1 . 3 Engine 4 | 1 . 3 Core . | . . . Reactor . | . . . Propulsion 5 | 2 . 3 Treads 5 | 2 . 3 Leg . | . . . Wheel . | . . . Hover . | . . . Flight . | . . . Utility 4 | 1 3 . Device . | . . . Storage 3 | 1 2 . Processor 1 | . 1 . Hackware . | . . . Protection . | . . . Artifact . | . . . Weapon 8 | 2 2 4 Energy Gun 3 | 1 . 2 Energy Cannon 1 | . 1 . Ballistic Gun 2 | 1 1 . Ballistic Cannon 1 | . . 1 Launcher 1 | . . 1 Special Weapon . | . . . Impact Weapon . | . . . Slashing Weapon . | . . . Piercing Weapon . | . . . Special Melee Weapon . | . . . Unidentified Prototypes . | . . . Parts Lost 11 | . . 11 Power 3 | . . 3 Propulsion 3 | . . 3 Utility . | . . . Weapon 5 | . . 5 Highest Loss Streak 11 | . . 11 To Critical Strikes 1 | . . 1 Average Backups 10 | 3 11 11 Power 1 | . 1 1 Propulsion 3 | 1 3 4 Utility 2 | . 2 4 Weapon 2 | 1 2 1 Tool/Special . | . . . Unused Backups 9 | . 2 7 Power . | . . . Propulsion 4 | . 2 2 Utility 5 | . . 5 Weapon . | . . . Tool/Special . | . . . Average Slot Usage (%) 96 | . 96 92 Engine 13 | . 13 14 Treads 27 | . 28 25 Storage 14 | . 14 14 Processor 12 | . 12 14 Energy Gun 9 | . 10 3 Energy Cannon 3 | . 3 7 Ballistic Gun 12 | . 13 7 Peak Build Rating 11 | 6 9 11 Average Rating 7 | 3 8 7 On Entrance 5 | . 6 9 Avg Prop Armor Cover (%) . | . . . Naked Turns . | . . . Heaviest Build 30 | 13 30 30 Greatest Support 40 | 40 40 40 Greatest Overweight (x) 1 | . . 1 Average Overweight (x) . | . . . Largest Inventory Capacity 15 | 8 15 15 Average Capacity 13 | 6 13 15 Most Carried 15 | 6 15 15 Average Carried 10 | 3 11 11 Final Capacity 15 | 8 15 15 Final Carried 15 | 4 15 6 Class Distribution -------------------- 100% | Mutant Dominant Class ---------------- Mutant | -10/Materials Mutant | -10/Mines Resources | -11 -10 -10 ----------- Run | Yrd Mat Min Matter Collected 419 | 180 239 . Remotely . | . . . Salvage Created 361 | . 312 49 Parts 25 | . 25 . Haulers Intercepted . | . . . Recyclers Shooed 2 | . 2 . Parts Field Recycled . | . . . Retrieved Matter . | . . . Parts Self-Destructed . | . . . Prevented . | . . . Parts Restored . | . . . Kills | -11 -10 -10 ------- Run | Yrd Mat Min Combat Hostiles Destroyed 23 | . 15 8 Guns 15 | . 15 . Cannons 1 | . . 1 AOE 7 | . . 7 Classes Destroyed 4 | . 3 1 Watcher 1 | . 1 . Swarmer 12 | . 12 . Grunt 3 | . 3 . Assembled 8 | . . 8 Best Kill Streak 8 | . 4 8 Combat Bots Only 8 | . 4 8 Max Kills in Single Turn 4 | . 2 4 Gunslinging 1 | . 1 . Exploded 4 | . . 4 Melee . | . . . Uniques/NPCs Destroyed . | . . . Combat | -11 -10 -10 -------- Run | Yrd Mat Min Hostile Shots Fired 113 | . 53 60 Missed 34 | . 17 17 Hits 79 | . 36 43 Projectile 79 | . 36 43 AOE 19 | . . 19 Critical Strikes 3 | . 1 2 Damage Taken 1504 | . 333 1171 Core 251 | . 55 196 Absorbed by Shields . | . . . Regen/Repaired (Parts) 31 | . 31 . Core Remaining (%) 100 | 100 . . Volleys Fired 46 | . 34 12 Largest 2 | . 2 2 Hottest 80 | . 80 80 Shots Fired 80 | . 65 15 Gun 68 | . 63 5 Cannon 7 | . 2 5 Launcher 5 | . . 5 Special . | . . . Kinetic 38 | . 33 5 Thermal 37 | . 32 5 Explosive 5 | . . 5 Electromagnetic . | . . . Robot Hit Streak 7 | . 7 4 Robot Miss Streak 6 | . 6 3 Penetration Max . | . . . Secondary Targets 4 | . 4 . Max Gunslinging Chain 1 | . 1 . Shots Hit Robots 45 | . 38 7 Core Hits 34 | . 23 11 Critical Kills 1 | . . 1 Critical Parts Destroyed . | . . . Critical Strikes 1 | . . 1 Destroy 1 | . . 1 Melee Attacks . | . . . Impact . | . . . Slashing . | . . . Piercing . | . . . Sneak Attacks . | . . . Combat Hostiles . | . . . Follow-up Attacks . | . . . Damage Inflicted 1000 | . 526 474 Guns 506 | . 482 24 Cannons 45 | . 18 27 Explosions 423 | . . 423 Melee . | . . . Ramming 26 | . 26 . Kinetic 337 | . 297 40 Thermal 214 | . 203 11 Explosive 423 | . . 423 Electromagnetic . | . . . Impact . | . . . Slashing . | . . . Piercing . | . . . Highest Corruption . | . . . Average Corruption . | . . . Corruption Purged . | . . . Corruption Blocked . | . . . Overload Shots . | . . . Overflow Damage . | . . . Projectiles . | . . . Explosions . | . . . Melee . | . . . Knockbacks . | . . . Impact . | . . . Kinetic . | . . . Secondary . | . . . Self-Inflicted Damage . | . . . Shots . | . . . Rammed 3 | . 3 . Targets Rammed 3 | . 3 . Kicked . | . . . Crushed . | . . . Highest Temperature 80 | . 42 80 Average Temperature 20 | . 19 24 Received Heat Transfer 178 | . 78 100 Siege Activations . | . . . Martial Activations . | . . . Shielding Activations . | . . . Robots Disrupted . | . . . Combat Hostiles . | . . . Robots Corrupted . | . . . Combat Hostiles . | . . . Parts Fried . | . . . Impact Corruptions . | . . . Robots Melted . | . . . Combat Hostiles . | . . . Parts Melted 1 | . 1 . Heat Transferred 487 | . 462 25 Parts Sabotaged . | . . . Parts Stolen . | . . . Parts Stripped . | . . . Power Chain Reactions . | . . . Alert | -11 -10 -10 ------- Run | Yrd Mat Min Maximum Alert Level 1 | . 1 . Low Security (%) 93 | 100 92 100 Level 1 6 | . 7 . Level 2 . | . . . Level 3 . | . . . Level 4 . | . . . Level 5 . | . . . High Security . | . . . Max Security . | . . . Peak Influence 215 | . 215 69 Initial 69 | . . 69 Average 92 | . 107 32 Influence Increases 492 | . 462 30 Destroy 0b10 Robot/C 300 | . 300 . Destroy 0b10 Robot/NC 5 | . 5 . Destroy Leader 52 | . 52 . Successful Hack 14 | . 14 . Disable Machine 30 | . 15 15 Destroy Structure 16 | . 1 15 Partial Spotted 15 | . 15 . Lose Combat Pursuer 60 | . 60 . Influence Decreases 491 | . 285 206 Entered New Map 108 | . . 108 Time Decay 315 | . 285 30 Lost Part 68 | . . 68 Squads Dispatched 1 | . 1 . Investigation . | . . . Extermination . | . . . Reinforcement 1 | . 1 . Assault . | . . . Garrison . | . . . Intercept . | . . . Searches Triggered . | . . . Construction Impeded . | . . . Haulers Reinforced . | . . . Active Scanning Responses . | . . . Cargo Convoy Interrupts . | . . . Stealth | -11 -10 -10 --------- Run | Yrd Mat Min Distress Signals 3 | . 3 . Communications Jammed . | . . . Distress Signals . | . . . Times Spotted 39 | . 24 15 Peak Tracking Total 9 | . 4 9 Tactical Retreats 2 | . 2 . Traps | -11 -10 -10 ------- Run | Yrd Mat Min Traps Triggered . | . . . Indirectly . | . . . Trap Hack Attempts . | . . . Triggered . | . . . Disarmed . | . . . Reprogrammed . | . . . Reused . | . . . Traps Extracted . | . . . Installed . | . . . Triggered . | . . . Machines | -11 -10 -10 ---------- Run | Yrd Mat Min Machines Disabled 2 | . 1 1 Max in Single Turn 1 | . 1 1 Machines Repaired . | . . . Machines Dismantled . | . . . Machines Sabotaged . | . . . Overloaded Fab Kills . | . . . Hacking | -11 -10 -10 --------- Run | Yrd Mat Min Machines Accessed 3 | . 3 . Terminals 1 | . 1 . Fabricators . | . . . Repair Stations 1 | . 1 . Recycling Units 1 | . 1 . Scanalyzers . | . . . Garrison Access . | . . . Total Hacks 15 | . 15 . Successful 8 | . 8 . Failed 7 | . 7 . Catastrophic 1 | . 1 . Database Lockouts . | . . . Manual . | . . . Terminals 7 | . 7 . Fabricators . | . . . Repair Stations 4 | . 4 . Recycling Units 4 | . 4 . Scanalyzers . | . . . Garrison Access . | . . . Terminal Hacks 3 | . 3 . Alert Level 1 | . 1 . Locate Traps 1 | . 1 . Zone Layout 1 | . 1 . Fabricator Hacks . | . . . Repair Station Hacks 4 | . 4 . Scan Component 2 | . 2 . Repair 2 | . 2 . Recycling Unit Hacks 1 | . 1 . Retrieve Components 1 | . 1 . Scanalyzer . | . . . Garrison Access Hacks . | . . . Unauthorized Hacks . | . . . Terminals . | . . . Fabricators . | . . . Repair Stations . | . . . Recycling Units . | . . . Scanalyzers . | . . . Garrison Access . | . . . Data Cores Recovered . | . . . Used . | . . . Hacking Detections 3 | . 3 . Full Trace Events . | . . . Feedback Events . | . . . Feedback Blocked . | . . . Robot Schematics Acquired . | . . . Robots Built . | . . . Authchips . | . . . Time . | . . . Total Robot Build Rating . | . . . Part Schematics Acquired . | . . . Parts Built . | . . . Authchips . | . . . Time . | . . . Total Part Build Rating . | . . . Part Studies Acquired . | . . . Parts Repaired 2 | . 2 . Time 52 | . 52 . Parts Recycled . | . . . Recycled Matter . | . . . Retrieved Matter . | . . . Retrieved Components 9 | . 9 . Parts Scanalyzed . | . . . Part Schematics Acquired . | . . . Parts Damaged . | . . . Bothacking | -11 -10 -10 ------------ Run | Yrd Mat Min Used RIF Installer . | . . . Robots Hacked . | . . . Non-combat . | . . . Combat . | . . . Robot Hacks Applied . | . . . Relay Couplers Released . | . . . Fabnet Peak Effective % . | . . . Robots Rewired . | . . . Allies Hacked . | . . . Hacks Repelled . | . . . Allies | -11 -10 -10 -------- Run | Yrd Mat Min Total Allies . | . . . Largest Group . | . . . Highest-Rated Group . | . . . Highest-Rated Ally . | . . . Total Orders . | . . . Ally Attacks . | . . . Total Damage . | . . . Kills . | . . . Allies Corrupted . | . . . Allies Melted . | . . . Intel | -11 -10 -10 ------- Run | Yrd Mat Min Active Infowar (turns) 848 | . 750 98 Optics 848 | . 750 98 Robot Analysis Total . | . . . Derelict Logs Recovered . | . . . Drone Launches . | . . . Drone Recoveries . | . . . Exploration | -11 -10 -10 ------------- Run | Yrd Mat Min Turns Passed 1020 | 74 848 98 Spaces Moved 487 | 42 413 32 Core 7 | 7 . . Treads 480 | 35 413 32 Legs . | . . . Wheels . | . . . Hover . | . . . Flight . | . . . Fastest Speed 50 | 50 160 160 Average Speed 158 | 141 160 167 Slowest Speed 240 | 160 160 240 Overloaded Moves . | . . . Propulsion Burnouts . | . . . Robots Hopped . | . . . Potential Cave-ins . | . . . Cave-ins Triggered . | . . . Exploration Rate (%) 25 | 4 55 18 Regions Visited 2 Branch Regions 1 Pre-discovered Areas . | . . . Known Exits Taken . | . . . Unknown Exits Taken 2 | 1 1 . Scrap Searched . | . . . Spaces Dug . | . . . Terrain Destroyed 23 | . . 23 Melee . | . . . Projectile 2 | . . 2 AOE 21 | . . 21 Terrain Rammed . | . . . Walls Destroyed . | . . . Machines Disabled . | . . . Actions | -11 -10 -10 --------- Run | Yrd Mat Min Total 654 | 56 536 62 Wait 58 | . 53 5 Move 485 | 41 412 32 Hop . | . . . Pick Up 31 | 9 20 2 Fast Attach 2 | 1 1 . Attach 18 | 5 3 10 Detach . | . . . Swap 3 | . 3 . Drop 8 | . 7 1 Fire 46 | . 34 12 Melee . | . . . Ram . | . . . Kick . | . . . Crush 3 | . 3 . Escape Stasis . | . . . Rewire . | . . . Trap . | . . . Miscellaneous . | . . . Route ------- -11/Scrapyard -10/Materials (discovered 2 exits: [*Mat] / [*Min]) -10/Mines History --------- Turn | Location | Event 13 | -11/Scrapyard | Discovered new exit (range 14) 75 | -11/Scrapyard | Entered Materials 302 | -10/Materials | Build established: Mutant 362 | -10/Materials | Repaired Ion Engine 390 | -10/Materials | Repaired Assault Rifle 467 | -10/Materials | Discovered new exit (range 17) 692 | -10/Materials | Discovered new exit (range 7) 923 | -10/Materials | Entered Mines 924 | -10/Mines | Assembled infested the area 929 | -10/Mines | Assisted by a Guerilla fighting off Assembled 946 | -10/Mines | YI-UF0 nonchalantly dropped a Grenade Launcher on the ground 993 | -10/Mines | Core integrity fell below 50% 1018 | -10/Mines | Core integrity fell below 20% 1021 | -10/Mines | Destroyed by as-37498 with Assembled Rifle Last Messages --------------- K-01 Serf collects debris. The unstable cave ceiling collapses. Acquired Bore Cannon. Critical hit (Burn: +80). The unstable cave ceiling collapses. K-01 Serf collects debris. HV Slug penetrates as-48646. as-48646 suffers critical hit (Destroy). as-48646 destroyed. HV Slug penetrates Wall. U-05 Engineer builds a Wall. K-01 Serf collects debris. HV Slug penetrates Wall. K-01 Serf collects debris. R-06 Scavenger collects Tractor Beam. HV Slug penetrates Earth. U-05 Engineer lays Concrete. K-01 Serf collects debris. The unstable cave ceiling collapses. U-05 Engineer builds a Wall. Map ----- +----------------------------------------------------+ | ?????????????????????????????????????????????????? | | ?????????????????????????????????????????????????? | | ?????????????????????????????????????????????????? | | ?????????????????????????????????????????????????? | | ?????????????????????????????????????????????????? | | ?????????????????????????????????????????????????? | | ?????????????????????????????????????????????????? | | ?????????????????????????????????????????????????? | | ?????????????????????????????????????????????????? | | ?????????????????????????????????????#???????????? | | ???????????????#?????????????####### #???????????? | | ???????????????? ???????????? #!#???????????? | | ????????????????# ??????????? """*% =????????????? | | ????????????????# ####??????? " " #????????????? | | ??????????????### ?????? ####?????????? | | ??????????????? # # #????? ## ?????????? | | ???????????????##u# ;#???? ## ?????????? | | ?????????????#### # #??# # #?????????? | | ??????????##### # # ## # ## #?????????? | | ??????????# % k= # # # #?????????? | | ??????????? rk%%! a # % #?????????? | | ??????????????#%! a #a # #?????????? | | ???????????????# ## #????###### | | ???????????????# a # ##??## # | | ????????????????# % % ## #### | | ????????????????# @ ## # ## | | ????????????????# # # | | ????????????????## ## # ! ## | | ?????????????????# #?###### ## ##? | | ?????????????????# ???????####### #### #?? | | ?????????????????# ??????????????######??## #?? | | ?????????????????# ????????????????????????# #?? | | ?????????????????# ????????????????????????# #?? | | ?????????????????# ????????????????????????? #?? | | ?????????????????#??????????????????????????####?? | | ?????????????????????????????????????????????????? | | ?????????????????????????????????????????????????? | | ?????????????????????????????????????????????????? | | ?????????????????????????????????????????????????? | | ?????????????????????????????????????????????????? | | ?????????????????????????????????????????????????? | | ?????????????????????????????????????????????????? | | ?????????????????????????????????????????????????? | | ?????????????????????????????????????????????????? | | ?????????????????????????????????????????????????? | | ?????????????????????????????????????????????????? | | ?????????????????????????????????????????????????? | | ?????????????????????????????????????????????????? | | ?????????????????????????????????????????????????? | | ?????????????????????????????????????????????????? | +----------------------------------------------------+ Best States ------------- Heat Dissipation 25 Energy Generation 10 Energy Capacity 250 Matter Stores 300 Matter Capacity 300 Sight Range 18 Terrain Scan Density 10 Evasion (%) 40 Recoil Reduction 2 Item Schematics ----------------- None Robot Schematics ------------------ None Fabricated ------------ Nothing Repaired ---------- Ion Engine | 83% | -10/Materials Assault Rifle | 79% | -10/Materials Studied --------- None Alien Tech Used ----------------- None Achievements -------------- None Challenges ------------ None Game ------ Seed MultitargetingTractorBlaster Manual? 0 Play Time 00:17:48 Cumulative 7.8 hours Start 2026.01.10 @ 18:40:17 End 2026.01.12 @ 19:31:40 Sessions 5 Manual Loads 0 Difficulty Rogue Special Mode None Game No. 10 Rogue 10 Adventurer 0 Explorer 0 Win Type - Total 0 Types 0/0/0/0/0/0/0/0/0/0 Lore% 3 Gallery% 11 Achievement% 12 Wizard Run 0 Options --------- Layout 1 ASCII 1 Keyboard 0 Movement Vi Keybinds 0 Fullscreen 1 Font 48/Terminus++ Map View 50x35 Zoom Use 0% Tactical HUD 0 Map Filters NONE Filters NONE Steam 1 RUN: 3ab10ed0-b005-4ebd-95b3-f73bb6eff665